Workbook

Sheet DESTRUCTIONS
A1: www.DIYStrengthTraining.com
A2: Click Here to Watch My Video on How to Use the Spreadshet
A3: Click Here to Get Notified When I Update this Spreadsheet
A4: Click Here to Get Jim Wendler's Book(s) and Read Them

Sheet Cycle 1
B1: 5/3/1 Method Calculator - NO ROUNDING | G1: Cycle Start Date:
B2: www.DIY-StrengthTraining.com | E2: Assistance % Increase: | H2: 0%
B3: 1 Rep Max (90%) | D3: Estimated 1RM | G3: Weight Used | I3: Reps Achieved
B4: Squat: | C4: =F4*0.9 -> 0 | D4: Squat: | F4: =G4*I4*0.033333+G4 -> 0
B5: Bench: | C5: =F5*0.9 -> 0 | D5: Bench: | F5: =G5*I5*0.033333+G5 -> 0
B6: Deadlift: | C6: =F6*0.9 -> 0 | D6: Deadlift: | F6: =G6*I6*0.033333+G6 -> 0
B7: OH Press: | C7: =F7*0.9 -> 0 | D7: OH Press: | F7: =G7*I7*0.033333+G7 -> 0
B8: Exercise | C8: Week 1 | F8: Week 2 | I8: Week 3 | L8: Week 4 - DELOAD
C9: Weight | D9: Reps | E9: Notes | F9: Weight | G9: Reps | H9: Notes | I9: Weight | J9: Reps | K9: Notes | L9: Weight | M9: Reps | N9: Notes
A10: Monday | B10: Squat | C10: =C4*0.4 -> 0 | D10: 5 | F10: =C10 -> 0 | G10: 5 | I10: =F10 -> 0 | J10: 5 | L10: - | M10: -
C11: =C4*0.47 -> 0 | D11: 5 | F11: =C4*0.5 -> 0 | G11: 5 | I11: =F11 -> 0 | J11: 5 | L11: - | M11: -
C12: =C4*0.55 -> 0 | D12: 3 | F12: =C4*0.6 -> 0 | G12: 3 | I12: =F12 -> 0 | J12: 3 | L12: - | M12: -
C13: =C4*0.65 -> 0 | D13: 5 | F13: =(C4*0.7) -> 0 | G13: 3 | I13: =(C4*0.75) -> 0 | J13: 5 | L13: =(C4*0.4) -> 0 | M13: 5
C14: =C4*0.75 -> 0 | D14: 5 | F14: =(C4*0.8) -> 0 | G14: 3 | I14: =(C4*0.85) -> 0 | J14: 3 | L14: =(C4*0.5) -> 0 | M14: 5
C15: =C4*0.85 -> 0 | D15: 5 | F15: =(C4*0.9) -> 0 | G15: 3 | I15: =(C4*0.95) -> 0 | J15: 1 | L15: =(C4*0.6) -> 0 | M15: 5
B16: Assistance 1 | D16: 5x10 | F16: =(H2+1)*C16 -> 0 | G16: 5x10 | I16: =(H2+1)*F16 -> 0 | J16: 5x10 | L16: =C16 -> 0 | M16: 5x10
B17: Assistance 2 | D17: 5x12 | F17: =(H2+1)*C17 -> 0 | G17: 5x12 | I17: =(H2+1)*F17 -> 0 | J17: 5x12 | L17: =C17 -> 0 | M17: 5x12
B18: Ab Exercise | D18: 5x13 | F18: =(H2+1)*C18 -> 0 | G18: 5x13 | I18: =(H2+1)*F18 -> 0 | J18: 5x13 | L18: =C18 -> 0 | M18: 5x13
A19: Tuesday | B19: Bench | C19: =C5*0.4 -> 0 | D19: 5 | F19: =C19 -> 0 | G19: 5 | I19: =F19 -> 0 | J19: 5 | L19: - | M19: -
C20: =C5*0.47 -> 0 | D20: 5 | F20: =C5*0.5 -> 0 | G20: 5 | I20: =F20 -> 0 | J20: 5 | L20: - | M20: -
C21: =C5*0.55 -> 0 | D21: 3 | F21: =C5*0.6 -> 0 | G21: 3 | I21: =F21 -> 0 | J21: 3 | L21: - | M21: -
C22: =C5*0.65 -> 0 | D22: 5 | F22: =(C5*0.7) -> 0 | G22: 3 | I22: =(C5*0.75) -> 0 | J22: 5 | L22: =(C5*0.4) -> 0 | M22: 5
C23: =C5*0.75 -> 0 | D23: 5 | F23: =(C5*0.8) -> 0 | G23: 3 | I23: =(C5*0.85) -> 0 | J23: 3 | L23: =(C5*0.5) -> 0 | M23: 5
C24: =C5*0.85 -> 0 | D24: 5 | F24: =(C5*0.9) -> 0 | G24: 3 | I24: =(C5*0.95) -> 0 | J24: 1 | L24: =(C5*0.6) -> 0 | M24: 5
B25: Assistance 1 | D25: 5x10 | F25: =(H2+1)*C25 -> 0 | G25: 5x10 | I25: =(H2+1)*F25 -> 0 | J25: 5x10 | L25: =C25 -> 0 | M25: 5x10
B26: Assistance 2 | D26: 5x10 | F26: =(H2+1)*C26 -> 0 | G26: 5x10 | I26: =(H2+1)*F26 -> 0 | J26: 5x10 | L26: =C26 -> 0 | M26: 5x10
B27: Ab Exercise | F27: =(H2+1)*C27 -> 0 | I27: =(H2+1)*F27 -> 0 | L27: =C27 -> 0
A28: Thursday | B28: Deadlift | C28: =C6*0.4 -> 0 | D28: 5 | F28: =C28 -> 0 | G28: 5 | I28: =F28 -> 0 | J28: 5 | L28: - | M28: -
C29: =C6*0.47 -> 0 | D29: 5 | F29: =C6*0.5 -> 0 | G29: 5 | I29: =F29 -> 0 | J29: 5 | L29: - | M29: -
C30: =C6*0.55 -> 0 | D30: 3 | F30: =C6*0.6 -> 0 | G30: 3 | I30: =F30 -> 0 | J30: 3 | L30: - | M30: -
C31: =C6*0.65 -> 0 | D31: 5 | F31: =(C6*0.7) -> 0 | G31: 3 | I31: =(C6*0.75) -> 0 | J31: 5 | L31: =(C6*0.4) -> 0 | M31: 5
C32: =C6*0.75 -> 0 | D32: 5 | F32: =(C6*0.8) -> 0 | G32: 3 | I32: =(C6*0.85) -> 0 | J32: 3 | L32: =(C6*0.5) -> 0 | M32: 5
C33: =C6*0.85 -> 0 | D33: 5 | F33: =(C6*0.9) -> 0 | G33: 3 | I33: =(C6*0.95) -> 0 | J33: 1 | L33: =(C6*0.6) -> 0 | M33: 5
B34: Assistance 1 | D34: 5x10 | F34: =(H2+1)*C34 -> 0 | G34: 5x10 | I34: =(H2+1)*F34 -> 0 | J34: 5x10 | L34: =C34 -> 0 | M34: 5x10
B35: Assistance 2 | D35: 5x10 | F35: =(H2+1)*C35 -> 0 | G35: 5x10 | I35: =(H2+1)*F35 -> 0 | J35: 5x10 | L35: =C35 -> 0 | M35: 5x10
B36: Ab Exercise | D36: 5x13 | F36: =(H2+1)*C36 -> 0 | G36: 5x13 | I36: =(H2+1)*F36 -> 0 | J36: 5x13 | L36: =C36 -> 0 | M36: 5x13
A37: Friday | B37: OH Press | C37: =C7*0.4 -> 0 | D37: 5 | F37: =C37 -> 0 | G37: 5 | I37: =F37 -> 0 | J37: 5 | L37: - | M37: -
C38: =C7*0.47 -> 0 | D38: 5 | F38: =C7*0.5 -> 0 | G38: 5 | I38: =F38 -> 0 | J38: 5 | L38: - | M38: -
C39: =C7*0.55 -> 0 | D39: 3 | F39: =C7*0.6 -> 0 | G39: 3 | I39: =F39 -> 0 | J39: 3 | L39: - | M39: -
C40: =C7*0.65 -> 0 | D40: 5 | F40: =(C7*0.7) -> 0 | G40: 3 | I40: =(C7*0.75) -> 0 | J40: 5 | L40: =(C7*0.4) -> 0 | M40: 5
C41: =C7*0.75 -> 0 | D41: 5 | F41: =(C7*0.8) -> 0 | G41: 3 | I41: =(C7*0.85) -> 0 | J41: 3 | L41: =(C7*0.5) -> 0 | M41: 5
C42: =C7*0.85 -> 0 | D42: 5 | F42: =(C7*0.9) -> 0 | G42: 3 | I42: =(C7*0.95) -> 0 | J42: 1 | L42: =(C7*0.6) -> 0 | M42: 5
B43: Assistance 1 | D43: 5x10 | F43: =(H2+1)*C43 -> 0 | G43: 5x10 | I43: =(H2+1)*F43 -> 0 | J43: 5x10 | L43: =C43 -> 0 | M43: 5x10
B44: Assistance 2 | D44: 5x10 | F44: =(H2+1)*C44 -> 0 | G44: 5x10 | I44: =(H2+1)*F44 -> 0 | J44: 5x10 | L44: =C44 -> 0 | M44: 5x10
B45: Ab Exercise | D45: 5x12 | F45: =(H2+1)*C45 -> 0 | G45: 5x12 | I45: =(H2+1)*F45 -> 0 | J45: 5x12 | L45: =C45 -> 0 | M45: 5x12
B47: Exercise | C47: Week 1 | F47: Week 2 | I47: Week 3 | L47: Week 4 - DELOAD
C48: Weight | D48: Reps | E48: Notes | F48: Weight | G48: Reps | H48: Notes | I48: Weight | J48: Reps | K48: Notes | L48: Weight | M48: Reps | N48: Notes
A49: Wed - ("Off")
A55: Sat or Sun - ("Off")

Sheet Cycle 2
B1: 5/3/1 Method Calculator - NO ROUNDING | G1: Cycle Start Date:
B2: www.DIY-StrengthTraining.com | E2: Assistance % Increase: | H2: 0% | K2: Training Max usually should only increase 5lbs for upper and 10lbs for lower. You do NOT need to enter any numbers here unless you really want to manually adjust something. You will need to enter numbers below in the yellow areas and possibly other areas if you want.
B3: Training Max | D3: 90% 1RM | E3: Estimated 1RM | H3: Weight Used | I3: Reps Achieved
B4: Squat: | C4: ='Cycle 1'!C4+10 -> 10 | D4: =G4*0.9 -> 0 | E4: Squat: | G4: =H4*I4*0.033333+H4 -> 0 | H4: =IF(I64=F64,'Cycle 1'!I15,IF(I64=D64,'Cycle 1'!F15,IF(I64=C64,'Cycle 1'!C15,"N/A"))) -> 0 | I4: =IF(I64=F64,'Cycle 1'!J15,IF(I64=D64,'Cycle 1'!G15,IF(I64=C64,'Cycle 1'!D15,"N/A"))) -> 1
B5: Bench: | C5: ='Cycle 1'!C5+5 -> 5 | D5: =G5*0.9 -> 0 | E5: Bench: | G5: =H5*I5*0.033333+H5 -> 0 | H5: =IF(I65=F65,'Cycle 1'!I24,IF(I65=D65,'Cycle 1'!F24,IF(I65=C65,'Cycle 1'!C24,"N/A"))) -> 0 | I5: =IF(I65=F65,'Cycle 1'!J24,IF(I65=D65,'Cycle 1'!G24,IF(I65=C65,'Cycle 1'!D24,"N/A"))) -> 1
B6: Deadlift: | C6: ='Cycle 1'!C6+10 -> 10 | D6: =G6*0.9 -> 0 | E6: Deadlift: | G6: =H6*I6*0.033333+H6 -> 0 | H6: =IF(I66=F66,'Cycle 1'!I33,IF(I66=D66,'Cycle 1'!F33,IF(I66=C66,'Cycle 1'!C33,"N/A"))) -> 0 | I6: =IF(I66=F66,'Cycle 1'!J33,IF(I66=D66,'Cycle 1'!G33,IF(I66=C66,'Cycle 1'!D33,"N/A"))) -> 1
B7: OH Press: | C7: ='Cycle 1'!C7+5 -> 5 | D7: =G7*0.9 -> 0 | E7: OH Press: | G7: =H7*I7*0.033333+H7 -> 0 | H7: =IF(I67=F67,'Cycle 1'!I42,IF(I67=D67,'Cycle 1'!F42,IF(I67=C67,'Cycle 1'!C42,"N/A"))) -> 0 | I7: =IF(I67=F67,'Cycle 1'!J42,IF(I67=D67,'Cycle 1'!G42,IF(I67=C67,'Cycle 1'!D42,"N/A"))) -> 1
B8: Exercise | C8: Week 1 | F8: Week 2 | I8: Week 3 | L8: Week 4 - DELOAD
C9: Weight | D9: Reps | E9: Notes | F9: Weight | G9: Reps | H9: Notes | I9: Weight | J9: Reps | K9: Notes | L9: Weight | M9: Reps | N9: Notes
A10: ='Cycle 1'!A10:A18 -> Monday | B10: Squat | C10: =C4*0.4 -> 4 | D10: 5 | F10: =C10 -> 4 | G10: 5 | I10: =F10 -> 4 | J10: 5 | L10: - | M10: -
C11: =C4*0.47 -> 5 | D11: 5 | F11: =C4*0.5 -> 5 | G11: 5 | I11: =F11 -> 5 | J11: 5 | L11: - | M11: -
C12: =C4*0.55 -> 6 | D12: 3 | F12: =C4*0.6 -> 6 | G12: 3 | I12: =F12 -> 6 | J12: 3 | L12: - | M12: -
C13: =C4*0.65 -> 7 | D13: 5 | F13: =(C4*0.7) -> 7 | G13: 3 | I13: =(C4*0.75) -> 8 | J13: 5 | L13: =(C4*0.4) -> 4 | M13: 5
C14: =C4*0.75 -> 8 | D14: 5 | F14: =(C4*0.8) -> 8 | G14: 3 | I14: =(C4*0.85) -> 9 | J14: 3 | L14: =(C4*0.5) -> 5 | M14: 5
C15: =C4*0.85 -> 9 | D15: 5 | F15: =(C4*0.9) -> 9 | G15: 3 | I15: =(C4*0.95) -> 10 | J15: 1 | L15: =(C4*0.6) -> 6 | M15: 5
B16: ='Cycle 1'!B16 -> Assistance 1 | C16: ='Cycle 1'!C16 -> 0 | D16: 5x10 | F16: =(H2+1)*C16 -> 0 | G16: 5x10 | I16: =(H2+1)*F16 -> 0 | J16: 5x10 | L16: =C16 -> 0 | M16: 5x10
B17: ='Cycle 1'!B17 -> Assistance 2 | C17: ='Cycle 1'!C17 -> 0 | D17: 5x12 | F17: =(H2+1)*C17 -> 0 | G17: 5x12 | I17: =(H2+1)*F17 -> 0 | J17: 5x12 | L17: =C17 -> 0 | M17: 5x12
B18: ='Cycle 1'!B18 -> Ab Exercise | C18: ='Cycle 1'!C18 -> 0 | D18: 5x13 | F18: =(H2+1)*C18 -> 0 | G18: 5x13 | I18: =(H2+1)*F18 -> 0 | J18: 5x13 | L18: =C18 -> 0 | M18: 5x13
A19: ='Cycle 1'!A19:A27 -> Tuesday | B19: Bench | C19: =C5*0.4 -> 2 | D19: 5 | F19: =C19 -> 2 | G19: 5 | I19: =F19 -> 2 | J19: 5 | L19: - | M19: -
C20: =C5*0.47 -> 2 | D20: 5 | F20: =C5*0.5 -> 3 | G20: 5 | I20: =F20 -> 3 | J20: 5 | L20: - | M20: -
C21: =C5*0.55 -> 3 | D21: 3 | F21: =C5*0.6 -> 3 | G21: 3 | I21: =F21 -> 3 | J21: 3 | L21: - | M21: -
C22: =C5*0.65 -> 3 | D22: 5 | F22: =(C5*0.7) -> 4 | G22: 3 | I22: =(C5*0.75) -> 4 | J22: 5 | L22: =(C5*0.4) -> 2 | M22: 5
C23: =C5*0.75 -> 4 | D23: 5 | F23: =(C5*0.8) -> 4 | G23: 3 | I23: =(C5*0.85) -> 4 | J23: 3 | L23: =(C5*0.5) -> 3 | M23: 5
C24: =C5*0.85 -> 4 | D24: 5 | F24: =(C5*0.9) -> 5 | G24: 3 | I24: =(C5*0.95) -> 5 | J24: 1 | L24: =(C5*0.6) -> 3 | M24: 5
B25: ='Cycle 1'!B25 -> Assistance 1 | C25: ='Cycle 1'!C25 -> 0 | D25: 5x10 | F25: =(H2+1)*C25 -> 0 | G25: 5x10 | I25: =(H2+1)*F25 -> 0 | J25: 5x10 | L25: =C25 -> 0 | M25: 5x10
B26: ='Cycle 1'!B26 -> Assistance 2 | C26: ='Cycle 1'!C26 -> 0 | D26: 5x10 | F26: =(H2+1)*C26 -> 0 | G26: 5x10 | I26: =(H2+1)*F26 -> 0 | J26: 5x10 | L26: =C26 -> 0 | M26: 5x10
B27: ='Cycle 1'!B27 -> Ab Exercise | C27: ='Cycle 1'!C27 -> 0 | F27: =(H2+1)*C27 -> 0 | I27: =(H2+1)*F27 -> 0 | L27: =C27 -> 0
A28: ='Cycle 1'!A28:A36 -> Thursday | B28: Deadlift | C28: =C6*0.4 -> 4 | D28: 5 | F28: =C28 -> 4 | G28: 5 | I28: =F28 -> 4 | J28: 5 | L28: - | M28: -
C29: =C6*0.47 -> 5 | D29: 5 | F29: =C6*0.5 -> 5 | G29: 5 | I29: =F29 -> 5 | J29: 5 | L29: - | M29: -
C30: =C6*0.55 -> 6 | D30: 3 | F30: =C6*0.6 -> 6 | G30: 3 | I30: =F30 -> 6 | J30: 3 | L30: - | M30: -
C31: =C6*0.65 -> 7 | D31: 5 | F31: =(C6*0.7) -> 7 | G31: 3 | I31: =(C6*0.75) -> 8 | J31: 5 | L31: =(C6*0.4) -> 4 | M31: 5
C32: =C6*0.75 -> 8 | D32: 5 | F32: =(C6*0.8) -> 8 | G32: 3 | I32: =(C6*0.85) -> 9 | J32: 3 | L32: =(C6*0.5) -> 5 | M32: 5
C33: =C6*0.85 -> 9 | D33: 5 | F33: =(C6*0.9) -> 9 | G33: 3 | I33: =(C6*0.95) -> 10 | J33: 1 | L33: =(C6*0.6) -> 6 | M33: 5
B34: ='Cycle 1'!B34 -> Assistance 1 | C34: ='Cycle 1'!C34 -> 0 | D34: 5x10 | F34: =(H2+1)*C34 -> 0 | G34: 5x10 | I34: =(H2+1)*F34 -> 0 | J34: 5x10 | L34: =C34 -> 0 | M34: 5x10
B35: ='Cycle 1'!B35 -> Assistance 2 | C35: ='Cycle 1'!C35 -> 0 | D35: 5x10 | F35: =(H2+1)*C35 -> 0 | G35: 5x10 | I35: =(H2+1)*F35 -> 0 | J35: 5x10 | L35: =C35 -> 0 | M35: 5x10
B36: ='Cycle 1'!B36 -> Ab Exercise | C36: ='Cycle 1'!C36 -> 0 | D36: 5x13 | F36: =(H2+1)*C36 -> 0 | G36: 5x13 | I36: =(H2+1)*F36 -> 0 | J36: 5x13 | L36: =C36 -> 0 | M36: 5x13
A37: ='Cycle 1'!A37:A45 -> Friday | B37: OH Press | C37: =C7*0.4 -> 2 | D37: 5 | F37: =C37 -> 2 | G37: 5 | I37: =F37 -> 2 | J37: 5 | L37: - | M37: -
C38: =C7*0.47 -> 2 | D38: 5 | F38: =C7*0.5 -> 3 | G38: 5 | I38: =F38 -> 3 | J38: 5 | L38: - | M38: -
C39: =C7*0.55 -> 3 | D39: 3 | F39: =C7*0.6 -> 3 | G39: 3 | I39: =F39 -> 3 | J39: 3 | L39: - | M39: -
C40: =C7*0.65 -> 3 | D40: 5 | F40: =(C7*0.7) -> 4 | G40: 3 | I40: =(C7*0.75) -> 4 | J40: 5 | L40: =(C7*0.4) -> 2 | M40: 5
C41: =C7*0.75 -> 4 | D41: 5 | F41: =(C7*0.8) -> 4 | G41: 3 | I41: =(C7*0.85) -> 4 | J41: 3 | L41: =(C7*0.5) -> 3 | M41: 5
C42: =C7*0.85 -> 4 | D42: 5 | F42: =(C7*0.9) -> 5 | G42: 3 | I42: =(C7*0.95) -> 5 | J42: 1 | L42: =(C7*0.6) -> 3 | M42: 5
B43: ='Cycle 1'!B43 -> Assistance 1 | C43: ='Cycle 1'!C43 -> 0 | D43: 5x10 | F43: =(H2+1)*C43 -> 0 | G43: 5x10 | I43: =(H2+1)*F43 -> 0 | J43: 5x10 | L43: =C43 -> 0 | M43: 5x10
B44: ='Cycle 1'!B44 -> Assistance 2 | C44: ='Cycle 1'!C44 -> 0 | D44: 5x10 | F44: =(H2+1)*C44 -> 0 | G44: 5x10 | I44: =(H2+1)*F44 -> 0 | J44: 5x10 | L44: =C44 -> 0 | M44: 5x10
B45: ='Cycle 1'!B45 -> Ab Exercise | C45: ='Cycle 1'!C45 -> 0 | D45: 5x12 | F45: =(H2+1)*C45 -> 0 | G45: 5x12 | I45: =(H2+1)*F45 -> 0 | J45: 5x12 | L45: =C45 -> 0 | M45: 5x12
B47: Exercise | C47: Week 1 | F47: Week 2 | I47: Week 3 | L47: Week 4 - DELOAD
C48: Weight | D48: Reps | E48: Notes | F48: Weight | G48: Reps | H48: Notes | I48: Weight | J48: Reps | K48: Notes | L48: Weight | M48: Reps | N48: Notes
A49: ='Cycle 1'!A49:A54 -> Wed - ("Off")
A55: ='Cycle 1'!A55:A60 -> Sat or Sun - ("Off")
C62: MAXES from Cycle 1
B63: Weeks | C63: 1 | D63: 2 | F63: 3 | I63: Best
B64: Squat | C64: =('Cycle 1'!C15*'Cycle 1'!D15*0.033333+'Cycle 1'!C15) -> 0 | D64: =('Cycle 1'!F15*'Cycle 1'!G15*0.033333+'Cycle 1'!F15) -> 0 | F64: =('Cycle 1'!I15*'Cycle 1'!J15*0.033333+'Cycle 1'!I15) -> 0 | I64: =MAX(C64:F64) -> 0
B65: Bench | C65: =('Cycle 1'!C24*'Cycle 1'!D24*0.033333+'Cycle 1'!C24) -> 0 | D65: =('Cycle 1'!F24*'Cycle 1'!G24*0.033333+'Cycle 1'!F24) -> 0 | F65: =('Cycle 1'!I24*'Cycle 1'!J24*0.033333+'Cycle 1'!I24) -> 0 | I65: =MAX(C65:F65) -> 0
B66: Deadlift | C66: =('Cycle 1'!C33*'Cycle 1'!D33*0.033333+'Cycle 1'!C33) -> 0 | D66: =('Cycle 1'!F33*'Cycle 1'!G33*0.033333+'Cycle 1'!F33) -> 0 | F66: =('Cycle 1'!I33*'Cycle 1'!J33*0.033333+'Cycle 1'!I33) -> 0 | I66: =MAX(C66:F66) -> 0
B67: OH Press | C67: =('Cycle 1'!C42*'Cycle 1'!D42*0.033333+'Cycle 1'!C42) -> 0 | D67: =('Cycle 1'!F42*'Cycle 1'!G42*0.033333+'Cycle 1'!F42) -> 0 | F67: =('Cycle 1'!I42*'Cycle 1'!J42*0.033333+'Cycle 1'!I42) -> 0 | I67: =MAX(C67:F67) -> 0

Sheet Cycle 3
B1: 5/3/1 Method Calculator - NO ROUNDING | G1: Cycle Start Date:
B2: www.DIY-StrengthTraining.com | E2: Assistance % Increase: | H2: 0% | K2: Training Max usually should only increase 5lbs for upper and 10lbs for lower. You do NOT need to enter any numbers here unless you really want to manually adjust something. You will need to enter numbers below in the yellow areas and possibly other areas if you want.
B3: Training Max | D3: 90% 1RM | E3: Estimated 1RM | H3: Weight Used | I3: Reps Achieved
B4: Squat: | C4: ='Cycle 2'!C4+10 -> 20 | D4: =G4*0.9 -> 9 | E4: Squat: | G4: =H4*I4*0.033333+H4 -> 10 | H4: =IF(I64=F64,'Cycle 2'!I15,IF(I64=D64,'Cycle 2'!F15,IF(I64=C64,'Cycle 2'!C15,"N/A"))) -> 9 | I4: =IF(I64=F64,'Cycle 2'!J15,IF(I64=D64,'Cycle 2'!G15,IF(I64=C64,'Cycle 2'!D15,"N/A"))) -> 5
B5: Bench: | C5: ='Cycle 2'!C5+5 -> 10 | D5: =G5*0.9 -> 4 | E5: Bench: | G5: =H5*I5*0.033333+H5 -> 5 | H5: =IF(I65=F65,'Cycle 2'!I24,IF(I65=D65,'Cycle 2'!F24,IF(I65=C65,'Cycle 2'!C24,"N/A"))) -> 4 | I5: =IF(I65=F65,'Cycle 2'!J24,IF(I65=D65,'Cycle 2'!G24,IF(I65=C65,'Cycle 2'!D24,"N/A"))) -> 5
B6: Deadlift: | C6: ='Cycle 2'!C6+10 -> 20 | D6: =G6*0.9 -> 9 | E6: Deadlift: | G6: =H6*I6*0.033333+H6 -> 10 | H6: =IF(I66=F66,'Cycle 2'!I33,IF(I66=D66,'Cycle 2'!F33,IF(I66=C66,'Cycle 2'!C33,"N/A"))) -> 9 | I6: =IF(I66=F66,'Cycle 2'!J33,IF(I66=D66,'Cycle 2'!G33,IF(I66=C66,'Cycle 2'!D33,"N/A"))) -> 5
B7: OH Press: | C7: ='Cycle 2'!C7+5 -> 10 | D7: =G7*0.9 -> 4 | E7: OH Press: | G7: =H7*I7*0.033333+H7 -> 5 | H7: =IF(I67=F67,'Cycle 2'!I42,IF(I67=D67,'Cycle 2'!F42,IF(I67=C67,'Cycle 2'!C42,"N/A"))) -> 4 | I7: =IF(I67=F67,'Cycle 2'!J42,IF(I67=D67,'Cycle 2'!G42,IF(I67=C67,'Cycle 2'!D42,"N/A"))) -> 5
B8: Exercise | C8: Week 1 | F8: Week 2 | I8: Week 3 | L8: Week 4 - DELOAD
C9: Weight | D9: Reps | E9: Notes | F9: Weight | G9: Reps | H9: Notes | I9: Weight | J9: Reps | K9: Notes | L9: Weight | M9: Reps | N9: Notes
A10: ='Cycle 2'!A10:A18 -> Monday | B10: Squat | C10: =C4*0.4 -> 8 | D10: 5 | F10: =C10 -> 8 | G10: 5 | I10: =F10 -> 8 | J10: 5 | L10: - | M10: -
C11: =C4*0.47 -> 9 | D11: 5 | F11: =C4*0.5 -> 10 | G11: 5 | I11: =F11 -> 10 | J11: 5 | L11: - | M11: -
C12: =C4*0.55 -> 11 | D12: 3 | F12: =C4*0.6 -> 12 | G12: 3 | I12: =F12 -> 12 | J12: 3 | L12: - | M12: -
C13: =C4*0.65 -> 13 | D13: 5 | F13: =(C4*0.7) -> 14 | G13: 3 | I13: =(C4*0.75) -> 15 | J13: 5 | L13: =(C4*0.4) -> 8 | M13: 5
C14: =C4*0.75 -> 15 | D14: 5 | F14: =(C4*0.8) -> 16 | G14: 3 | I14: =(C4*0.85) -> 17 | J14: 3 | L14: =(C4*0.5) -> 10 | M14: 5
C15: =C4*0.85 -> 17 | D15: 5 | F15: =(C4*0.9) -> 18 | G15: 3 | I15: =(C4*0.95) -> 19 | J15: 1 | L15: =(C4*0.6) -> 12 | M15: 5
B16: ='Cycle 2'!B16 -> Assistance 1 | C16: ='Cycle 2'!C16 -> 0 | D16: 5x10 | F16: =(H2+1)*C16 -> 0 | G16: 5x10 | I16: =(H2+1)*F16 -> 0 | J16: 5x10 | L16: =C16 -> 0 | M16: 5x10
B17: ='Cycle 2'!B17 -> Assistance 2 | C17: ='Cycle 2'!C17 -> 0 | D17: 5x12 | F17: =(H2+1)*C17 -> 0 | G17: 5x12 | I17: =(H2+1)*F17 -> 0 | J17: 5x12 | L17: =C17 -> 0 | M17: 5x12
B18: ='Cycle 2'!B18 -> Ab Exercise | C18: ='Cycle 2'!C18 -> 0 | D18: 5x13 | F18: =(H2+1)*C18 -> 0 | G18: 5x13 | I18: =(H2+1)*F18 -> 0 | J18: 5x13 | L18: =C18 -> 0 | M18: 5x13
A19: ='Cycle 2'!A19:A27 -> Tuesday | B19: Bench | C19: =C5*0.4 -> 4 | D19: 5 | F19: =C19 -> 4 | G19: 5 | I19: =F19 -> 4 | J19: 5 | L19: - | M19: -
C20: =C5*0.47 -> 5 | D20: 5 | F20: =C5*0.5 -> 5 | G20: 5 | I20: =F20 -> 5 | J20: 5 | L20: - | M20: -
C21: =C5*0.55 -> 6 | D21: 3 | F21: =C5*0.6 -> 6 | G21: 3 | I21: =F21 -> 6 | J21: 3 | L21: - | M21: -
C22: =C5*0.65 -> 7 | D22: 5 | F22: =(C5*0.7) -> 7 | G22: 3 | I22: =(C5*0.75) -> 8 | J22: 5 | L22: =(C5*0.4) -> 4 | M22: 5
C23: =C5*0.75 -> 8 | D23: 5 | F23: =(C5*0.8) -> 8 | G23: 3 | I23: =(C5*0.85) -> 9 | J23: 3 | L23: =(C5*0.5) -> 5 | M23: 5
C24: =C5*0.85 -> 9 | D24: 5 | F24: =(C5*0.9) -> 9 | G24: 3 | I24: =(C5*0.95) -> 10 | J24: 1 | L24: =(C5*0.6) -> 6 | M24: 5
B25: ='Cycle 2'!B25 -> Assistance 1 | C25: ='Cycle 2'!C25 -> 0 | D25: 5x10 | F25: =(H2+1)*C25 -> 0 | G25: 5x10 | I25: =(H2+1)*F25 -> 0 | J25: 5x10 | L25: =C25 -> 0 | M25: 5x10
B26: ='Cycle 2'!B26 -> Assistance 2 | C26: ='Cycle 2'!C26 -> 0 | D26: 5x10 | F26: =(H2+1)*C26 -> 0 | G26: 5x10 | I26: =(H2+1)*F26 -> 0 | J26: 5x10 | L26: =C26 -> 0 | M26: 5x10
B27: ='Cycle 2'!B27 -> Ab Exercise | C27: ='Cycle 2'!C27 -> 0 | F27: =(H2+1)*C27 -> 0 | I27: =(H2+1)*F27 -> 0 | L27: =C27 -> 0
A28: ='Cycle 2'!A28:A36 -> Thursday | B28: Deadlift | C28: =C6*0.4 -> 8 | D28: 5 | F28: =C28 -> 8 | G28: 5 | I28: =F28 -> 8 | J28: 5 | L28: - | M28: -
C29: =C6*0.47 -> 9 | D29: 5 | F29: =C6*0.5 -> 10 | G29: 5 | I29: =F29 -> 10 | J29: 5 | L29: - | M29: -
C30: =C6*0.55 -> 11 | D30: 3 | F30: =C6*0.6 -> 12 | G30: 3 | I30: =F30 -> 12 | J30: 3 | L30: - | M30: -
C31: =C6*0.65 -> 13 | D31: 5 | F31: =(C6*0.7) -> 14 | G31: 3 | I31: =(C6*0.75) -> 15 | J31: 5 | L31: =(C6*0.4) -> 8 | M31: 5
C32: =C6*0.75 -> 15 | D32: 5 | F32: =(C6*0.8) -> 16 | G32: 3 | I32: =(C6*0.85) -> 17 | J32: 3 | L32: =(C6*0.5) -> 10 | M32: 5
C33: =C6*0.85 -> 17 | D33: 5 | F33: =(C6*0.9) -> 18 | G33: 3 | I33: =(C6*0.95) -> 19 | J33: 1 | L33: =(C6*0.6) -> 12 | M33: 5
B34: ='Cycle 2'!B34 -> Assistance 1 | C34: ='Cycle 2'!C34 -> 0 | D34: 5x10 | F34: =(H2+1)*C34 -> 0 | G34: 5x10 | I34: =(H2+1)*F34 -> 0 | J34: 5x10 | L34: =C34 -> 0 | M34: 5x10
B35: ='Cycle 2'!B35 -> Assistance 2 | C35: ='Cycle 2'!C35 -> 0 | D35: 5x10 | F35: =(H2+1)*C35 -> 0 | G35: 5x10 | I35: =(H2+1)*F35 -> 0 | J35: 5x10 | L35: =C35 -> 0 | M35: 5x10
B36: ='Cycle 2'!B36 -> Ab Exercise | C36: ='Cycle 2'!C36 -> 0 | D36: 5x13 | F36: =(H2+1)*C36 -> 0 | G36: 5x13 | I36: =(H2+1)*F36 -> 0 | J36: 5x13 | L36: =C36 -> 0 | M36: 5x13
A37: ='Cycle 2'!A37:A45 -> Friday | B37: OH Press | C37: =C7*0.4 -> 4 | D37: 5 | F37: =C37 -> 4 | G37: 5 | I37: =F37 -> 4 | J37: 5 | L37: - | M37: -
C38: =C7*0.47 -> 5 | D38: 5 | F38: =C7*0.5 -> 5 | G38: 5 | I38: =F38 -> 5 | J38: 5 | L38: - | M38: -
C39: =C7*0.55 -> 6 | D39: 3 | F39: =C7*0.6 -> 6 | G39: 3 | I39: =F39 -> 6 | J39: 3 | L39: - | M39: -
C40: =C7*0.65 -> 7 | D40: 5 | F40: =(C7*0.7) -> 7 | G40: 3 | I40: =(C7*0.75) -> 8 | J40: 5 | L40: =(C7*0.4) -> 4 | M40: 5
C41: =C7*0.75 -> 8 | D41: 5 | F41: =(C7*0.8) -> 8 | G41: 3 | I41: =(C7*0.85) -> 9 | J41: 3 | L41: =(C7*0.5) -> 5 | M41: 5
C42: =C7*0.85 -> 9 | D42: 5 | F42: =(C7*0.9) -> 9 | G42: 3 | I42: =(C7*0.95) -> 10 | J42: 1 | L42: =(C7*0.6) -> 6 | M42: 5
B43: ='Cycle 2'!B43 -> Assistance 1 | C43: ='Cycle 2'!C43 -> 0 | D43: 5x10 | F43: =(H2+1)*C43 -> 0 | G43: 5x10 | I43: =(H2+1)*F43 -> 0 | J43: 5x10 | L43: =C43 -> 0 | M43: 5x10
B44: ='Cycle 2'!B44 -> Assistance 2 | C44: ='Cycle 2'!C44 -> 0 | D44: 5x10 | F44: =(H2+1)*C44 -> 0 | G44: 5x10 | I44: =(H2+1)*F44 -> 0 | J44: 5x10 | L44: =C44 -> 0 | M44: 5x10
B45: ='Cycle 2'!B45 -> Ab Exercise | C45: ='Cycle 2'!C45 -> 0 | D45: 5x12 | F45: =(H2+1)*C45 -> 0 | G45: 5x12 | I45: =(H2+1)*F45 -> 0 | J45: 5x12 | L45: =C45 -> 0 | M45: 5x12
B47: Exercise | C47: Week 1 | F47: Week 2 | I47: Week 3 | L47: Week 4 - DELOAD
C48: Weight | D48: Reps | E48: Notes | F48: Weight | G48: Reps | H48: Notes | I48: Weight | J48: Reps | K48: Notes | L48: Weight | M48: Reps | N48: Notes
A49: ='Cycle 2'!A49:A54 -> Wed - ("Off")
A55: ='Cycle 2'!A55:A60 -> Sat or Sun - ("Off")
C62: MAXES from Cycle 2
B63: Weeks | C63: 1 | D63: 2 | F63: 3 | I63: Best
B64: Squat | C64: =('Cycle 2'!C15*'Cycle 2'!D15*0.033333+'Cycle 2'!C15) -> 10 | D64: =('Cycle 2'!F15*'Cycle 2'!G15*0.033333+'Cycle 2'!F15) -> 10 | F64: =('Cycle 2'!I15*'Cycle 2'!J15*0.033333+'Cycle 2'!I15) -> 10 | I64: =MAX(C64:F64) -> 10
B65: Bench | C65: =('Cycle 2'!C24*'Cycle 2'!D24*0.033333+'Cycle 2'!C24) -> 5 | D65: =('Cycle 2'!F24*'Cycle 2'!G24*0.033333+'Cycle 2'!F24) -> 5 | F65: =('Cycle 2'!I24*'Cycle 2'!J24*0.033333+'Cycle 2'!I24) -> 5 | I65: =MAX(C65:F65) -> 5
B66: Deadlift | C66: =('Cycle 2'!C33*'Cycle 2'!D33*0.033333+'Cycle 2'!C33) -> 10 | D66: =('Cycle 2'!F33*'Cycle 2'!G33*0.033333+'Cycle 2'!F33) -> 10 | F66: =('Cycle 2'!I33*'Cycle 2'!J33*0.033333+'Cycle 2'!I33) -> 10 | I66: =MAX(C66:F66) -> 10
B67: OH Press | C67: =('Cycle 2'!C42*'Cycle 2'!D42*0.033333+'Cycle 2'!C42) -> 5 | D67: =('Cycle 2'!F42*'Cycle 2'!G42*0.033333+'Cycle 2'!F42) -> 5 | F67: =('Cycle 2'!I42*'Cycle 2'!J42*0.033333+'Cycle 2'!I42) -> 5 | I67: =MAX(C67:F67) -> 5

Sheet Cycle 4
B1: 5/3/1 Method Calculator - NO ROUNDING | G1: Cycle Start Date:
B2: www.DIY-StrengthTraining.com | E2: Assistance % Increase: | H2: 0% | K2: Training Max usually should only increase 5lbs for upper and 10lbs for lower. You do NOT need to enter any numbers here unless you really want to manually adjust something. You will need to enter numbers below in the yellow areas and possibly other areas if you want.
B3: Training Max | D3: 90% 1RM | E3: Estimated 1RM | H3: Weight Used | I3: Reps Achieved
B4: Squat: | C4: ='Cycle 3'!C4+10 -> 30 | D4: =G4*0.9 -> 18 | E4: Squat: | G4: =H4*I4*0.033333+H4 -> 20 | H4: =IF(I64=F64,'Cycle 3'!I15,IF(I64=D64,'Cycle 3'!F15,IF(I64=C64,'Cycle 3'!C15,"N/A"))) -> 17 | I4: =IF(I64=F64,'Cycle 3'!J15,IF(I64=D64,'Cycle 3'!G15,IF(I64=C64,'Cycle 3'!D15,"N/A"))) -> 5
B5: Bench: | C5: ='Cycle 3'!C5+5 -> 15 | D5: =G5*0.9 -> 9 | E5: Bench: | G5: =H5*I5*0.033333+H5 -> 10 | H5: =IF(I65=F65,'Cycle 3'!I24,IF(I65=D65,'Cycle 3'!F24,IF(I65=C65,'Cycle 3'!C24,"N/A"))) -> 9 | I5: =IF(I65=F65,'Cycle 3'!J24,IF(I65=D65,'Cycle 3'!G24,IF(I65=C65,'Cycle 3'!D24,"N/A"))) -> 5
B6: Deadlift: | C6: ='Cycle 3'!C6+10 -> 30 | D6: =G6*0.9 -> 18 | E6: Deadlift: | G6: =H6*I6*0.033333+H6 -> 20 | H6: =IF(I66=F66,'Cycle 3'!I33,IF(I66=D66,'Cycle 3'!F33,IF(I66=C66,'Cycle 3'!C33,"N/A"))) -> 17 | I6: =IF(I66=F66,'Cycle 3'!J33,IF(I66=D66,'Cycle 3'!G33,IF(I66=C66,'Cycle 3'!D33,"N/A"))) -> 5
B7: OH Press: | C7: ='Cycle 3'!C7+5 -> 15 | D7: =G7*0.9 -> 9 | E7: OH Press: | G7: =H7*I7*0.033333+H7 -> 10 | H7: =IF(I67=F67,'Cycle 3'!I42,IF(I67=D67,'Cycle 3'!F42,IF(I67=C67,'Cycle 3'!C42,"N/A"))) -> 9 | I7: =IF(I67=F67,'Cycle 3'!J42,IF(I67=D67,'Cycle 3'!G42,IF(I67=C67,'Cycle 3'!D42,"N/A"))) -> 5
B8: Exercise | C8: Week 1 | F8: Week 2 | I8: Week 3 | L8: Week 4 - DELOAD
C9: Weight | D9: Reps | E9: Notes | F9: Weight | G9: Reps | H9: Notes | I9: Weight | J9: Reps | K9: Notes | L9: Weight | M9: Reps | N9: Notes
A10: ='Cycle 3'!A10:A18 -> Monday | B10: Squat | C10: =C4*0.4 -> 12 | D10: 5 | F10: =C10 -> 12 | G10: 5 | I10: =F10 -> 12 | J10: 5 | L10: - | M10: -
C11: =C4*0.47 -> 14 | D11: 5 | F11: =C4*0.5 -> 15 | G11: 5 | I11: =F11 -> 15 | J11: 5 | L11: - | M11: -
C12: =C4*0.55 -> 17 | D12: 3 | F12: =C4*0.6 -> 18 | G12: 3 | I12: =F12 -> 18 | J12: 3 | L12: - | M12: -
C13: =C4*0.65 -> 20 | D13: 5 | F13: =(C4*0.7) -> 21 | G13: 3 | I13: =(C4*0.75) -> 23 | J13: 5 | L13: =(C4*0.4) -> 12 | M13: 5
C14: =C4*0.75 -> 23 | D14: 5 | F14: =(C4*0.8) -> 24 | G14: 3 | I14: =(C4*0.85) -> 26 | J14: 3 | L14: =(C4*0.5) -> 15 | M14: 5
C15: =C4*0.85 -> 26 | D15: 5 | F15: =(C4*0.9) -> 27 | G15: 3 | I15: =(C4*0.95) -> 29 | J15: 1 | L15: =(C4*0.6) -> 18 | M15: 5
B16: ='Cycle 3'!B16 -> Assistance 1 | C16: ='Cycle 3'!C16 -> 0 | D16: 5x10 | F16: =(H2+1)*C16 -> 0 | G16: 5x10 | I16: =(H2+1)*F16 -> 0 | J16: 5x10 | L16: =C16 -> 0 | M16: 5x10
B17: ='Cycle 3'!B17 -> Assistance 2 | C17: ='Cycle 3'!C17 -> 0 | D17: 5x12 | F17: =(H2+1)*C17 -> 0 | G17: 5x12 | I17: =(H2+1)*F17 -> 0 | J17: 5x12 | L17: =C17 -> 0 | M17: 5x12
B18: ='Cycle 3'!B18 -> Ab Exercise | C18: ='Cycle 3'!C18 -> 0 | D18: 5x13 | F18: =(H2+1)*C18 -> 0 | G18: 5x13 | I18: =(H2+1)*F18 -> 0 | J18: 5x13 | L18: =C18 -> 0 | M18: 5x13
A19: ='Cycle 3'!A19:A27 -> Tuesday | B19: Bench | C19: =C5*0.4 -> 6 | D19: 5 | F19: =C19 -> 6 | G19: 5 | I19: =F19 -> 6 | J19: 5 | L19: - | M19: -
C20: =C5*0.47 -> 7 | D20: 5 | F20: =C5*0.5 -> 8 | G20: 5 | I20: =F20 -> 8 | J20: 5 | L20: - | M20: -
C21: =C5*0.55 -> 8 | D21: 3 | F21: =C5*0.6 -> 9 | G21: 3 | I21: =F21 -> 9 | J21: 3 | L21: - | M21: -
C22: =C5*0.65 -> 10 | D22: 5 | F22: =(C5*0.7) -> 11 | G22: 3 | I22: =(C5*0.75) -> 11 | J22: 5 | L22: =(C5*0.4) -> 6 | M22: 5
C23: =C5*0.75 -> 11 | D23: 5 | F23: =(C5*0.8) -> 12 | G23: 3 | I23: =(C5*0.85) -> 13 | J23: 3 | L23: =(C5*0.5) -> 8 | M23: 5
C24: =C5*0.85 -> 13 | D24: 5 | F24: =(C5*0.9) -> 14 | G24: 3 | I24: =(C5*0.95) -> 14 | J24: 1 | L24: =(C5*0.6) -> 9 | M24: 5
B25: ='Cycle 3'!B25 -> Assistance 1 | C25: ='Cycle 3'!C25 -> 0 | D25: 5x10 | F25: =(H2+1)*C25 -> 0 | G25: 5x10 | I25: =(H2+1)*F25 -> 0 | J25: 5x10 | L25: =C25 -> 0 | M25: 5x10
B26: ='Cycle 3'!B26 -> Assistance 2 | C26: ='Cycle 3'!C26 -> 0 | D26: 5x10 | F26: =(H2+1)*C26 -> 0 | G26: 5x10 | I26: =(H2+1)*F26 -> 0 | J26: 5x10 | L26: =C26 -> 0 | M26: 5x10
B27: ='Cycle 3'!B27 -> Ab Exercise | C27: ='Cycle 3'!C27 -> 0 | F27: =(H2+1)*C27 -> 0 | I27: =(H2+1)*F27 -> 0 | L27: =C27 -> 0
A28: ='Cycle 3'!A28:A36 -> Thursday | B28: Deadlift | C28: =C6*0.4 -> 12 | D28: 5 | F28: =C28 -> 12 | G28: 5 | I28: =F28 -> 12 | J28: 5 | L28: - | M28: -
C29: =C6*0.47 -> 14 | D29: 5 | F29: =C6*0.5 -> 15 | G29: 5 | I29: =F29 -> 15 | J29: 5 | L29: - | M29: -
C30: =C6*0.55 -> 17 | D30: 3 | F30: =C6*0.6 -> 18 | G30: 3 | I30: =F30 -> 18 | J30: 3 | L30: - | M30: -
C31: =C6*0.65 -> 20 | D31: 5 | F31: =(C6*0.7) -> 21 | G31: 3 | I31: =(C6*0.75) -> 23 | J31: 5 | L31: =(C6*0.4) -> 12 | M31: 5
C32: =C6*0.75 -> 23 | D32: 5 | F32: =(C6*0.8) -> 24 | G32: 3 | I32: =(C6*0.85) -> 26 | J32: 3 | L32: =(C6*0.5) -> 15 | M32: 5
C33: =C6*0.85 -> 26 | D33: 5 | F33: =(C6*0.9) -> 27 | G33: 3 | I33: =(C6*0.95) -> 29 | J33: 1 | L33: =(C6*0.6) -> 18 | M33: 5
B34: ='Cycle 3'!B34 -> Assistance 1 | C34: ='Cycle 3'!C34 -> 0 | D34: 5x10 | F34: =(H2+1)*C34 -> 0 | G34: 5x10 | I34: =(H2+1)*F34 -> 0 | J34: 5x10 | L34: =C34 -> 0 | M34: 5x10
B35: ='Cycle 3'!B35 -> Assistance 2 | C35: ='Cycle 3'!C35 -> 0 | D35: 5x10 | F35: =(H2+1)*C35 -> 0 | G35: 5x10 | I35: =(H2+1)*F35 -> 0 | J35: 5x10 | L35: =C35 -> 0 | M35: 5x10
B36: ='Cycle 3'!B36 -> Ab Exercise | C36: ='Cycle 3'!C36 -> 0 | D36: 5x13 | F36: =(H2+1)*C36 -> 0 | G36: 5x13 | I36: =(H2+1)*F36 -> 0 | J36: 5x13 | L36: =C36 -> 0 | M36: 5x13
A37: ='Cycle 3'!A37:A45 -> Friday | B37: OH Press | C37: =C7*0.4 -> 6 | D37: 5 | F37: =C37 -> 6 | G37: 5 | I37: =F37 -> 6 | J37: 5 | L37: - | M37: -
C38: =C7*0.47 -> 7 | D38: 5 | F38: =C7*0.5 -> 8 | G38: 5 | I38: =F38 -> 8 | J38: 5 | L38: - | M38: -
C39: =C7*0.55 -> 8 | D39: 3 | F39: =C7*0.6 -> 9 | G39: 3 | I39: =F39 -> 9 | J39: 3 | L39: - | M39: -
C40: =C7*0.65 -> 10 | D40: 5 | F40: =(C7*0.7) -> 11 | G40: 3 | I40: =(C7*0.75) -> 11 | J40: 5 | L40: =(C7*0.4) -> 6 | M40: 5
C41: =C7*0.75 -> 11 | D41: 5 | F41: =(C7*0.8) -> 12 | G41: 3 | I41: =(C7*0.85) -> 13 | J41: 3 | L41: =(C7*0.5) -> 8 | M41: 5
C42: =C7*0.85 -> 13 | D42: 5 | F42: =(C7*0.9) -> 14 | G42: 3 | I42: =(C7*0.95) -> 14 | J42: 1 | L42: =(C7*0.6) -> 9 | M42: 5
B43: ='Cycle 3'!B43 -> Assistance 1 | C43: ='Cycle 3'!C43 -> 0 | D43: 5x10 | F43: =(H2+1)*C43 -> 0 | G43: 5x10 | I43: =(H2+1)*F43 -> 0 | J43: 5x10 | L43: =C43 -> 0 | M43: 5x10
B44: ='Cycle 3'!B44 -> Assistance 2 | C44: ='Cycle 3'!C44 -> 0 | D44: 5x10 | F44: =(H2+1)*C44 -> 0 | G44: 5x10 | I44: =(H2+1)*F44 -> 0 | J44: 5x10 | L44: =C44 -> 0 | M44: 5x10
B45: ='Cycle 3'!B45 -> Ab Exercise | C45: ='Cycle 3'!C45 -> 0 | D45: 5x12 | F45: =(H2+1)*C45 -> 0 | G45: 5x12 | I45: =(H2+1)*F45 -> 0 | J45: 5x12 | L45: =C45 -> 0 | M45: 5x12
B47: Exercise | C47: Week 1 | F47: Week 2 | I47: Week 3 | L47: Week 4 - DELOAD
C48: Weight | D48: Reps | E48: Notes | F48: Weight | G48: Reps | H48: Notes | I48: Weight | J48: Reps | K48: Notes | L48: Weight | M48: Reps | N48: Notes
A49: ='Cycle 3'!A49:A54 -> Wed - ("Off")
A55: ='Cycle 3'!A55:A60 -> Sat or Sun - ("Off")
C62: MAXES from Cycle 3
B63: Weeks | C63: 1 | D63: 2 | F63: 3 | I63: Best
B64: Squat | C64: =('Cycle 3'!C15*'Cycle 3'!D15*0.033333+'Cycle 3'!C15) -> 20 | D64: =('Cycle 3'!F15*'Cycle 3'!G15*0.033333+'Cycle 3'!F15) -> 20 | F64: =('Cycle 3'!I15*'Cycle 3'!J15*0.033333+'Cycle 3'!I15) -> 20 | I64: =MAX(C64:F64) -> 20
B65: Bench | C65: =('Cycle 3'!C24*'Cycle 3'!D24*0.033333+'Cycle 3'!C24) -> 10 | D65: =('Cycle 3'!F24*'Cycle 3'!G24*0.033333+'Cycle 3'!F24) -> 10 | F65: =('Cycle 3'!I24*'Cycle 3'!J24*0.033333+'Cycle 3'!I24) -> 10 | I65: =MAX(C65:F65) -> 10
B66: Deadlift | C66: =('Cycle 3'!C33*'Cycle 3'!D33*0.033333+'Cycle 3'!C33) -> 20 | D66: =('Cycle 3'!F33*'Cycle 3'!G33*0.033333+'Cycle 3'!F33) -> 20 | F66: =('Cycle 3'!I33*'Cycle 3'!J33*0.033333+'Cycle 3'!I33) -> 20 | I66: =MAX(C66:F66) -> 20
B67: OH Press | C67: =('Cycle 3'!C42*'Cycle 3'!D42*0.033333+'Cycle 3'!C42) -> 10 | D67: =('Cycle 3'!F42*'Cycle 3'!G42*0.033333+'Cycle 3'!F42) -> 10 | F67: =('Cycle 3'!I42*'Cycle 3'!J42*0.033333+'Cycle 3'!I42) -> 10 | I67: =MAX(C67:F67) -> 10

Sheet Cycle 5
B1: 5/3/1 Method Calculator - NO ROUNDING | G1: Cycle Start Date:
B2: www.DIY-StrengthTraining.com | E2: Assistance % Increase: | H2: 0% | K2: Training Max usually should only increase 5lbs for upper and 10lbs for lower. You do NOT need to enter any numbers here unless you really want to manually adjust something. You will need to enter numbers below in the yellow areas and possibly other areas if you want.
B3: Training Max | D3: 90% 1RM | E3: Estimated 1RM | H3: Weight Used | I3: Reps Achieved
B4: Squat: | C4: ='Cycle 4'!C4+10 -> 40 | D4: =G4*0.9 -> 27 | E4: Squat: | G4: =H4*I4*0.033333+H4 -> 30 | H4: =IF(I64=F64,'Cycle 4'!I15,IF(I64=D64,'Cycle 4'!F15,IF(I64=C64,'Cycle 4'!C15,"N/A"))) -> 26 | I4: =IF(I64=F64,'Cycle 4'!J15,IF(I64=D64,'Cycle 4'!G15,IF(I64=C64,'Cycle 4'!D15,"N/A"))) -> 5
B5: Bench: | C5: ='Cycle 4'!C5+5 -> 20 | D5: =G5*0.9 -> 13 | E5: Bench: | G5: =H5*I5*0.033333+H5 -> 15 | H5: =IF(I65=F65,'Cycle 4'!I24,IF(I65=D65,'Cycle 4'!F24,IF(I65=C65,'Cycle 4'!C24,"N/A"))) -> 13 | I5: =IF(I65=F65,'Cycle 4'!J24,IF(I65=D65,'Cycle 4'!G24,IF(I65=C65,'Cycle 4'!D24,"N/A"))) -> 5
B6: Deadlift: | C6: ='Cycle 4'!C6+10 -> 40 | D6: =G6*0.9 -> 27 | E6: Deadlift: | G6: =H6*I6*0.033333+H6 -> 30 | H6: =IF(I66=F66,'Cycle 4'!I33,IF(I66=D66,'Cycle 4'!F33,IF(I66=C66,'Cycle 4'!C33,"N/A"))) -> 26 | I6: =IF(I66=F66,'Cycle 4'!J33,IF(I66=D66,'Cycle 4'!G33,IF(I66=C66,'Cycle 4'!D33,"N/A"))) -> 5
B7: OH Press: | C7: ='Cycle 4'!C7+5 -> 20 | D7: =G7*0.9 -> 13 | E7: OH Press: | G7: =H7*I7*0.033333+H7 -> 15 | H7: =IF(I67=F67,'Cycle 4'!I42,IF(I67=D67,'Cycle 4'!F42,IF(I67=C67,'Cycle 4'!C42,"N/A"))) -> 13 | I7: =IF(I67=F67,'Cycle 4'!J42,IF(I67=D67,'Cycle 4'!G42,IF(I67=C67,'Cycle 4'!D42,"N/A"))) -> 5
B8: Exercise | C8: Week 1 | F8: Week 2 | I8: Week 3 | L8: Week 4 - DELOAD
C9: Weight | D9: Reps | E9: Notes | F9: Weight | G9: Reps | H9: Notes | I9: Weight | J9: Reps | K9: Notes | L9: Weight | M9: Reps | N9: Notes
A10: ='Cycle 4'!A10:A18 -> Monday | B10: Squat | C10: =C4*0.4 -> 16 | D10: 5 | F10: =C10 -> 16 | G10: 5 | I10: =F10 -> 16 | J10: 5 | L10: - | M10: -
C11: =C4*0.47 -> 19 | D11: 5 | F11: =C4*0.5 -> 20 | G11: 5 | I11: =F11 -> 20 | J11: 5 | L11: - | M11: -
C12: =C4*0.55 -> 22 | D12: 3 | F12: =C4*0.6 -> 24 | G12: 3 | I12: =F12 -> 24 | J12: 3 | L12: - | M12: -
C13: =C4*0.65 -> 26 | D13: 5 | F13: =(C4*0.7) -> 28 | G13: 3 | I13: =(C4*0.75) -> 30 | J13: 5 | L13: =(C4*0.4) -> 16 | M13: 5
C14: =C4*0.75 -> 30 | D14: 5 | F14: =(C4*0.8) -> 32 | G14: 3 | I14: =(C4*0.85) -> 34 | J14: 3 | L14: =(C4*0.5) -> 20 | M14: 5
C15: =C4*0.85 -> 34 | D15: 5 | F15: =(C4*0.9) -> 36 | G15: 3 | I15: =(C4*0.95) -> 38 | J15: 1 | L15: =(C4*0.6) -> 24 | M15: 5
B16: ='Cycle 4'!B16 -> Assistance 1 | C16: ='Cycle 4'!C16 -> 0 | D16: 5x10 | F16: =(H2+1)*C16 -> 0 | G16: 5x10 | I16: =(H2+1)*F16 -> 0 | J16: 5x10 | L16: =C16 -> 0 | M16: 5x10
B17: ='Cycle 4'!B17 -> Assistance 2 | C17: ='Cycle 4'!C17 -> 0 | D17: 5x12 | F17: =(H2+1)*C17 -> 0 | G17: 5x12 | I17: =(H2+1)*F17 -> 0 | J17: 5x12 | L17: =C17 -> 0 | M17: 5x12
B18: ='Cycle 4'!B18 -> Ab Exercise | C18: ='Cycle 4'!C18 -> 0 | D18: 5x13 | F18: =(H2+1)*C18 -> 0 | G18: 5x13 | I18: =(H2+1)*F18 -> 0 | J18: 5x13 | L18: =C18 -> 0 | M18: 5x13
A19: ='Cycle 4'!A19:A27 -> Tuesday | B19: Bench | C19: =C5*0.4 -> 8 | D19: 5 | F19: =C19 -> 8 | G19: 5 | I19: =F19 -> 8 | J19: 5 | L19: - | M19: -
C20: =C5*0.47 -> 9 | D20: 5 | F20: =C5*0.5 -> 10 | G20: 5 | I20: =F20 -> 10 | J20: 5 | L20: - | M20: -
C21: =C5*0.55 -> 11 | D21: 3 | F21: =C5*0.6 -> 12 | G21: 3 | I21: =F21 -> 12 | J21: 3 | L21: - | M21: -
C22: =C5*0.65 -> 13 | D22: 5 | F22: =(C5*0.7) -> 14 | G22: 3 | I22: =(C5*0.75) -> 15 | J22: 5 | L22: =(C5*0.4) -> 8 | M22: 5
C23: =C5*0.75 -> 15 | D23: 5 | F23: =(C5*0.8) -> 16 | G23: 3 | I23: =(C5*0.85) -> 17 | J23: 3 | L23: =(C5*0.5) -> 10 | M23: 5
C24: =C5*0.85 -> 17 | D24: 5 | F24: =(C5*0.9) -> 18 | G24: 3 | I24: =(C5*0.95) -> 19 | J24: 1 | L24: =(C5*0.6) -> 12 | M24: 5
B25: ='Cycle 4'!B25 -> Assistance 1 | C25: ='Cycle 4'!C25 -> 0 | D25: 5x10 | F25: =(H2+1)*C25 -> 0 | G25: 5x10 | I25: =(H2+1)*F25 -> 0 | J25: 5x10 | L25: =C25 -> 0 | M25: 5x10
B26: ='Cycle 4'!B26 -> Assistance 2 | C26: ='Cycle 4'!C26 -> 0 | D26: 5x10 | F26: =(H2+1)*C26 -> 0 | G26: 5x10 | I26: =(H2+1)*F26 -> 0 | J26: 5x10 | L26: =C26 -> 0 | M26: 5x10
B27: ='Cycle 4'!B27 -> Ab Exercise | C27: ='Cycle 4'!C27 -> 0 | F27: =(H2+1)*C27 -> 0 | I27: =(H2+1)*F27 -> 0 | L27: =C27 -> 0
A28: ='Cycle 4'!A28:A36 -> Thursday | B28: Deadlift | C28: =C6*0.4 -> 16 | D28: 5 | F28: =C28 -> 16 | G28: 5 | I28: =F28 -> 16 | J28: 5 | L28: - | M28: -
C29: =C6*0.47 -> 19 | D29: 5 | F29: =C6*0.5 -> 20 | G29: 5 | I29: =F29 -> 20 | J29: 5 | L29: - | M29: -
C30: =C6*0.55 -> 22 | D30: 3 | F30: =C6*0.6 -> 24 | G30: 3 | I30: =F30 -> 24 | J30: 3 | L30: - | M30: -
C31: =C6*0.65 -> 26 | D31: 5 | F31: =(C6*0.7) -> 28 | G31: 3 | I31: =(C6*0.75) -> 30 | J31: 5 | L31: =(C6*0.4) -> 16 | M31: 5
C32: =C6*0.75 -> 30 | D32: 5 | F32: =(C6*0.8) -> 32 | G32: 3 | I32: =(C6*0.85) -> 34 | J32: 3 | L32: =(C6*0.5) -> 20 | M32: 5
C33: =C6*0.85 -> 34 | D33: 5 | F33: =(C6*0.9) -> 36 | G33: 3 | I33: =(C6*0.95) -> 38 | J33: 1 | L33: =(C6*0.6) -> 24 | M33: 5
B34: ='Cycle 4'!B34 -> Assistance 1 | C34: ='Cycle 4'!C34 -> 0 | D34: 5x10 | F34: =(H2+1)*C34 -> 0 | G34: 5x10 | I34: =(H2+1)*F34 -> 0 | J34: 5x10 | L34: =C34 -> 0 | M34: 5x10
B35: ='Cycle 4'!B35 -> Assistance 2 | C35: ='Cycle 4'!C35 -> 0 | D35: 5x10 | F35: =(H2+1)*C35 -> 0 | G35: 5x10 | I35: =(H2+1)*F35 -> 0 | J35: 5x10 | L35: =C35 -> 0 | M35: 5x10
B36: ='Cycle 4'!B36 -> Ab Exercise | C36: ='Cycle 4'!C36 -> 0 | D36: 5x13 | F36: =(H2+1)*C36 -> 0 | G36: 5x13 | I36: =(H2+1)*F36 -> 0 | J36: 5x13 | L36: =C36 -> 0 | M36: 5x13
A37: ='Cycle 4'!A37:A45 -> Friday | B37: OH Press | C37: =C7*0.4 -> 8 | D37: 5 | F37: =C37 -> 8 | G37: 5 | I37: =F37 -> 8 | J37: 5 | L37: - | M37: -
C38: =C7*0.47 -> 9 | D38: 5 | F38: =C7*0.5 -> 10 | G38: 5 | I38: =F38 -> 10 | J38: 5 | L38: - | M38: -
C39: =C7*0.55 -> 11 | D39: 3 | F39: =C7*0.6 -> 12 | G39: 3 | I39: =F39 -> 12 | J39: 3 | L39: - | M39: -
C40: =C7*0.65 -> 13 | D40: 5 | F40: =(C7*0.7) -> 14 | G40: 3 | I40: =(C7*0.75) -> 15 | J40: 5 | L40: =(C7*0.4) -> 8 | M40: 5
C41: =C7*0.75 -> 15 | D41: 5 | F41: =(C7*0.8) -> 16 | G41: 3 | I41: =(C7*0.85) -> 17 | J41: 3 | L41: =(C7*0.5) -> 10 | M41: 5
C42: =C7*0.85 -> 17 | D42: 5 | F42: =(C7*0.9) -> 18 | G42: 3 | I42: =(C7*0.95) -> 19 | J42: 1 | L42: =(C7*0.6) -> 12 | M42: 5
B43: ='Cycle 4'!B43 -> Assistance 1 | C43: ='Cycle 4'!C43 -> 0 | D43: 5x10 | F43: =(H2+1)*C43 -> 0 | G43: 5x10 | I43: =(H2+1)*F43 -> 0 | J43: 5x10 | L43: =C43 -> 0 | M43: 5x10
B44: ='Cycle 4'!B44 -> Assistance 2 | C44: ='Cycle 4'!C44 -> 0 | D44: 5x10 | F44: =(H2+1)*C44 -> 0 | G44: 5x10 | I44: =(H2+1)*F44 -> 0 | J44: 5x10 | L44: =C44 -> 0 | M44: 5x10
B45: ='Cycle 4'!B45 -> Ab Exercise | C45: ='Cycle 4'!C45 -> 0 | D45: 5x12 | F45: =(H2+1)*C45 -> 0 | G45: 5x12 | I45: =(H2+1)*F45 -> 0 | J45: 5x12 | L45: =C45 -> 0 | M45: 5x12
B47: Exercise | C47: Week 1 | F47: Week 2 | I47: Week 3 | L47: Week 4 - DELOAD
C48: Weight | D48: Reps | E48: Notes | F48: Weight | G48: Reps | H48: Notes | I48: Weight | J48: Reps | K48: Notes | L48: Weight | M48: Reps | N48: Notes
A49: ='Cycle 4'!A49:A54 -> Wed - ("Off")
A55: ='Cycle 4'!A55:A60 -> Sat or Sun - ("Off")
C62: MAXES from Cycle 4
B63: Weeks | C63: 1 | D63: 2 | F63: 3 | I63: Best
B64: Squat | C64: =('Cycle 4'!C15*'Cycle 4'!D15*0.033333+'Cycle 4'!C15) -> 30 | D64: =('Cycle 4'!F15*'Cycle 4'!G15*0.033333+'Cycle 4'!F15) -> 30 | F64: =('Cycle 4'!I15*'Cycle 4'!J15*0.033333+'Cycle 4'!I15) -> 29 | I64: =MAX(C64:F64) -> 30
B65: Bench | C65: =('Cycle 4'!C24*'Cycle 4'!D24*0.033333+'Cycle 4'!C24) -> 15 | D65: =('Cycle 4'!F24*'Cycle 4'!G24*0.033333+'Cycle 4'!F24) -> 15 | F65: =('Cycle 4'!I24*'Cycle 4'!J24*0.033333+'Cycle 4'!I24) -> 15 | I65: =MAX(C65:F65) -> 15
B66: Deadlift | C66: =('Cycle 4'!C33*'Cycle 4'!D33*0.033333+'Cycle 4'!C33) -> 30 | D66: =('Cycle 4'!F33*'Cycle 4'!G33*0.033333+'Cycle 4'!F33) -> 30 | F66: =('Cycle 4'!I33*'Cycle 4'!J33*0.033333+'Cycle 4'!I33) -> 29 | I66: =MAX(C66:F66) -> 30
B67: OH Press | C67: =('Cycle 4'!C42*'Cycle 4'!D42*0.033333+'Cycle 4'!C42) -> 15 | D67: =('Cycle 4'!F42*'Cycle 4'!G42*0.033333+'Cycle 4'!F42) -> 15 | F67: =('Cycle 4'!I42*'Cycle 4'!J42*0.033333+'Cycle 4'!I42) -> 15 | I67: =MAX(C67:F67) -> 15

Sheet Cycle 6
B1: 5/3/1 Method Calculator - NO ROUNDING | G1: Cycle Start Date:
B2: www.DIY-StrengthTraining.com | E2: Assistance % Increase: | H2: 0% | K2: Training Max usually should only increase 5lbs for upper and 10lbs for lower. You do NOT need to enter any numbers here unless you really want to manually adjust something. You will need to enter numbers below in the yellow areas and possibly other areas if you want.
B3: Training Max | D3: 90% 1RM | E3: Estimated 1RM | H3: Weight Used | I3: Reps Achieved
B4: Squat: | C4: ='Cycle 5'!C4+10 -> 50 | D4: =G4*0.9 -> 36 | E4: Squat: | G4: =H4*I4*0.033333+H4 -> 40 | H4: =IF(I64=F64,'Cycle 5'!I15,IF(I64=D64,'Cycle 5'!F15,IF(I64=C64,'Cycle 5'!C15,"N/A"))) -> 34 | I4: =IF(I64=F64,'Cycle 5'!J15,IF(I64=D64,'Cycle 5'!G15,IF(I64=C64,'Cycle 5'!D15,"N/A"))) -> 5
B5: Bench: | C5: ='Cycle 5'!C5+5 -> 25 | D5: =G5*0.9 -> 18 | E5: Bench: | G5: =H5*I5*0.033333+H5 -> 20 | H5: =IF(I65=F65,'Cycle 5'!I24,IF(I65=D65,'Cycle 5'!F24,IF(I65=C65,'Cycle 5'!C24,"N/A"))) -> 17 | I5: =IF(I65=F65,'Cycle 5'!J24,IF(I65=D65,'Cycle 5'!G24,IF(I65=C65,'Cycle 5'!D24,"N/A"))) -> 5
B6: Deadlift: | C6: ='Cycle 5'!C6+10 -> 50 | D6: =G6*0.9 -> 36 | E6: Deadlift: | G6: =H6*I6*0.033333+H6 -> 40 | H6: =IF(I66=F66,'Cycle 5'!I33,IF(I66=D66,'Cycle 5'!F33,IF(I66=C66,'Cycle 5'!C33,"N/A"))) -> 34 | I6: =IF(I66=F66,'Cycle 5'!J33,IF(I66=D66,'Cycle 5'!G33,IF(I66=C66,'Cycle 5'!D33,"N/A"))) -> 5
B7: OH Press: | C7: ='Cycle 5'!C7+5 -> 25 | D7: =G7*0.9 -> 18 | E7: OH Press: | G7: =H7*I7*0.033333+H7 -> 20 | H7: =IF(I67=F67,'Cycle 5'!I42,IF(I67=D67,'Cycle 5'!F42,IF(I67=C67,'Cycle 5'!C42,"N/A"))) -> 17 | I7: =IF(I67=F67,'Cycle 5'!J42,IF(I67=D67,'Cycle 5'!G42,IF(I67=C67,'Cycle 5'!D42,"N/A"))) -> 5
B8: Exercise | C8: Week 1 | F8: Week 2 | I8: Week 3 | L8: Week 4 - DELOAD
C9: Weight | D9: Reps | E9: Notes | F9: Weight | G9: Reps | H9: Notes | I9: Weight | J9: Reps | K9: Notes | L9: Weight | M9: Reps | N9: Notes
A10: ='Cycle 5'!A10:A18 -> Monday | B10: Squat | C10: =C4*0.4 -> 20 | D10: 5 | F10: =C10 -> 20 | G10: 5 | I10: =F10 -> 20 | J10: 5 | L10: - | M10: -
C11: =C4*0.47 -> 24 | D11: 5 | F11: =C4*0.5 -> 25 | G11: 5 | I11: =F11 -> 25 | J11: 5 | L11: - | M11: -
C12: =C4*0.55 -> 28 | D12: 3 | F12: =C4*0.6 -> 30 | G12: 3 | I12: =F12 -> 30 | J12: 3 | L12: - | M12: -
C13: =C4*0.65 -> 33 | D13: 5 | F13: =(C4*0.7) -> 35 | G13: 3 | I13: =(C4*0.75) -> 38 | J13: 5 | L13: =(C4*0.4) -> 20 | M13: 5
C14: =C4*0.75 -> 38 | D14: 5 | F14: =(C4*0.8) -> 40 | G14: 3 | I14: =(C4*0.85) -> 43 | J14: 3 | L14: =(C4*0.5) -> 25 | M14: 5
C15: =C4*0.85 -> 43 | D15: 5 | F15: =(C4*0.9) -> 45 | G15: 3 | I15: =(C4*0.95) -> 48 | J15: 1 | L15: =(C4*0.6) -> 30 | M15: 5
B16: ='Cycle 5'!B16 -> Assistance 1 | C16: ='Cycle 5'!C16 -> 0 | D16: 5x10 | F16: =(H2+1)*C16 -> 0 | G16: 5x10 | I16: =(H2+1)*F16 -> 0 | J16: 5x10 | L16: =C16 -> 0 | M16: 5x10
B17: ='Cycle 5'!B17 -> Assistance 2 | C17: ='Cycle 5'!C17 -> 0 | D17: 5x12 | F17: =(H2+1)*C17 -> 0 | G17: 5x12 | I17: =(H2+1)*F17 -> 0 | J17: 5x12 | L17: =C17 -> 0 | M17: 5x12
B18: ='Cycle 5'!B18 -> Ab Exercise | C18: ='Cycle 5'!C18 -> 0 | D18: 5x13 | F18: =(H2+1)*C18 -> 0 | G18: 5x13 | I18: =(H2+1)*F18 -> 0 | J18: 5x13 | L18: =C18 -> 0 | M18: 5x13
A19: ='Cycle 5'!A19:A27 -> Tuesday | B19: Bench | C19: =C5*0.4 -> 10 | D19: 5 | F19: =C19 -> 10 | G19: 5 | I19: =F19 -> 10 | J19: 5 | L19: - | M19: -
C20: =C5*0.47 -> 12 | D20: 5 | F20: =C5*0.5 -> 13 | G20: 5 | I20: =F20 -> 13 | J20: 5 | L20: - | M20: -
C21: =C5*0.55 -> 14 | D21: 3 | F21: =C5*0.6 -> 15 | G21: 3 | I21: =F21 -> 15 | J21: 3 | L21: - | M21: -
C22: =C5*0.65 -> 16 | D22: 5 | F22: =(C5*0.7) -> 18 | G22: 3 | I22: =(C5*0.75) -> 19 | J22: 5 | L22: =(C5*0.4) -> 10 | M22: 5
C23: =C5*0.75 -> 19 | D23: 5 | F23: =(C5*0.8) -> 20 | G23: 3 | I23: =(C5*0.85) -> 21 | J23: 3 | L23: =(C5*0.5) -> 13 | M23: 5
C24: =C5*0.85 -> 21 | D24: 5 | F24: =(C5*0.9) -> 23 | G24: 3 | I24: =(C5*0.95) -> 24 | J24: 1 | L24: =(C5*0.6) -> 15 | M24: 5
B25: ='Cycle 5'!B25 -> Assistance 1 | C25: ='Cycle 5'!C25 -> 0 | D25: 5x10 | F25: =(H2+1)*C25 -> 0 | G25: 5x10 | I25: =(H2+1)*F25 -> 0 | J25: 5x10 | L25: =C25 -> 0 | M25: 5x10
B26: ='Cycle 5'!B26 -> Assistance 2 | C26: ='Cycle 5'!C26 -> 0 | D26: 5x10 | F26: =(H2+1)*C26 -> 0 | G26: 5x10 | I26: =(H2+1)*F26 -> 0 | J26: 5x10 | L26: =C26 -> 0 | M26: 5x10
B27: ='Cycle 5'!B27 -> Ab Exercise | C27: ='Cycle 5'!C27 -> 0 | F27: =(H2+1)*C27 -> 0 | I27: =(H2+1)*F27 -> 0 | L27: =C27 -> 0
A28: ='Cycle 5'!A28:A36 -> Thursday | B28: Deadlift | C28: =C6*0.4 -> 20 | D28: 5 | F28: =C28 -> 20 | G28: 5 | I28: =F28 -> 20 | J28: 5 | L28: - | M28: -
C29: =C6*0.47 -> 24 | D29: 5 | F29: =C6*0.5 -> 25 | G29: 5 | I29: =F29 -> 25 | J29: 5 | L29: - | M29: -
C30: =C6*0.55 -> 28 | D30: 3 | F30: =C6*0.6 -> 30 | G30: 3 | I30: =F30 -> 30 | J30: 3 | L30: - | M30: -
C31: =C6*0.65 -> 33 | D31: 5 | F31: =(C6*0.7) -> 35 | G31: 3 | I31: =(C6*0.75) -> 38 | J31: 5 | L31: =(C6*0.4) -> 20 | M31: 5
C32: =C6*0.75 -> 38 | D32: 5 | F32: =(C6*0.8) -> 40 | G32: 3 | I32: =(C6*0.85) -> 43 | J32: 3 | L32: =(C6*0.5) -> 25 | M32: 5
C33: =C6*0.85 -> 43 | D33: 5 | F33: =(C6*0.9) -> 45 | G33: 3 | I33: =(C6*0.95) -> 48 | J33: 1 | L33: =(C6*0.6) -> 30 | M33: 5
B34: ='Cycle 5'!B34 -> Assistance 1 | C34: ='Cycle 5'!C34 -> 0 | D34: 5x10 | F34: =(H2+1)*C34 -> 0 | G34: 5x10 | I34: =(H2+1)*F34 -> 0 | J34: 5x10 | L34: =C34 -> 0 | M34: 5x10
B35: ='Cycle 5'!B35 -> Assistance 2 | C35: ='Cycle 5'!C35 -> 0 | D35: 5x10 | F35: =(H2+1)*C35 -> 0 | G35: 5x10 | I35: =(H2+1)*F35 -> 0 | J35: 5x10 | L35: =C35 -> 0 | M35: 5x10
B36: ='Cycle 5'!B36 -> Ab Exercise | C36: ='Cycle 5'!C36 -> 0 | D36: 5x13 | F36: =(H2+1)*C36 -> 0 | G36: 5x13 | I36: =(H2+1)*F36 -> 0 | J36: 5x13 | L36: =C36 -> 0 | M36: 5x13
A37: ='Cycle 5'!A37:A45 -> Friday | B37: OH Press | C37: =C7*0.4 -> 10 | D37: 5 | F37: =C37 -> 10 | G37: 5 | I37: =F37 -> 10 | J37: 5 | L37: - | M37: -
C38: =C7*0.47 -> 12 | D38: 5 | F38: =C7*0.5 -> 13 | G38: 5 | I38: =F38 -> 13 | J38: 5 | L38: - | M38: -
C39: =C7*0.55 -> 14 | D39: 3 | F39: =C7*0.6 -> 15 | G39: 3 | I39: =F39 -> 15 | J39: 3 | L39: - | M39: -
C40: =C7*0.65 -> 16 | D40: 5 | F40: =(C7*0.7) -> 18 | G40: 3 | I40: =(C7*0.75) -> 19 | J40: 5 | L40: =(C7*0.4) -> 10 | M40: 5
C41: =C7*0.75 -> 19 | D41: 5 | F41: =(C7*0.8) -> 20 | G41: 3 | I41: =(C7*0.85) -> 21 | J41: 3 | L41: =(C7*0.5) -> 13 | M41: 5
C42: =C7*0.85 -> 21 | D42: 5 | F42: =(C7*0.9) -> 23 | G42: 3 | I42: =(C7*0.95) -> 24 | J42: 1 | L42: =(C7*0.6) -> 15 | M42: 5
B43: ='Cycle 5'!B43 -> Assistance 1 | C43: ='Cycle 5'!C43 -> 0 | D43: 5x10 | F43: =(H2+1)*C43 -> 0 | G43: 5x10 | I43: =(H2+1)*F43 -> 0 | J43: 5x10 | L43: =C43 -> 0 | M43: 5x10
B44: ='Cycle 5'!B44 -> Assistance 2 | C44: ='Cycle 5'!C44 -> 0 | D44: 5x10 | F44: =(H2+1)*C44 -> 0 | G44: 5x10 | I44: =(H2+1)*F44 -> 0 | J44: 5x10 | L44: =C44 -> 0 | M44: 5x10
B45: ='Cycle 5'!B45 -> Ab Exercise | C45: ='Cycle 5'!C45 -> 0 | D45: 5x12 | F45: =(H2+1)*C45 -> 0 | G45: 5x12 | I45: =(H2+1)*F45 -> 0 | J45: 5x12 | L45: =C45 -> 0 | M45: 5x12
B47: Exercise | C47: Week 1 | F47: Week 2 | I47: Week 3 | L47: Week 4 - DELOAD
C48: Weight | D48: Reps | E48: Notes | F48: Weight | G48: Reps | H48: Notes | I48: Weight | J48: Reps | K48: Notes | L48: Weight | M48: Reps | N48: Notes
A49: ='Cycle 5'!A49:A54 -> Wed - ("Off")
A55: ='Cycle 5'!A55:A60 -> Sat or Sun - ("Off")
C62: MAXES from Cycle 5
B63: Weeks | C63: 1 | D63: 2 | F63: 3 | I63: Best
B64: Squat | C64: =('Cycle 5'!C15*'Cycle 5'!D15*0.033333+'Cycle 5'!C15) -> 40 | D64: =('Cycle 5'!F15*'Cycle 5'!G15*0.033333+'Cycle 5'!F15) -> 40 | F64: =('Cycle 5'!I15*'Cycle 5'!J15*0.033333+'Cycle 5'!I15) -> 39 | I64: =MAX(C64:F64) -> 40
B65: Bench | C65: =('Cycle 5'!C24*'Cycle 5'!D24*0.033333+'Cycle 5'!C24) -> 20 | D65: =('Cycle 5'!F24*'Cycle 5'!G24*0.033333+'Cycle 5'!F24) -> 20 | F65: =('Cycle 5'!I24*'Cycle 5'!J24*0.033333+'Cycle 5'!I24) -> 20 | I65: =MAX(C65:F65) -> 20
B66: Deadlift | C66: =('Cycle 5'!C33*'Cycle 5'!D33*0.033333+'Cycle 5'!C33) -> 40 | D66: =('Cycle 5'!F33*'Cycle 5'!G33*0.033333+'Cycle 5'!F33) -> 40 | F66: =('Cycle 5'!I33*'Cycle 5'!J33*0.033333+'Cycle 5'!I33) -> 39 | I66: =MAX(C66:F66) -> 40
B67: OH Press | C67: =('Cycle 5'!C42*'Cycle 5'!D42*0.033333+'Cycle 5'!C42) -> 20 | D67: =('Cycle 5'!F42*'Cycle 5'!G42*0.033333+'Cycle 5'!F42) -> 20 | F67: =('Cycle 5'!I42*'Cycle 5'!J42*0.033333+'Cycle 5'!I42) -> 20 | I67: =MAX(C67:F67) -> 20

Sheet Cycle 7
B1: 5/3/1 Method Calculator - NO ROUNDING | G1: Cycle Start Date:
B2: www.DIY-StrengthTraining.com | E2: Assistance % Increase: | H2: 0% | K2: Training Max usually should only increase 5lbs for upper and 10lbs for lower. You do NOT need to enter any numbers here unless you really want to manually adjust something. You will need to enter numbers below in the yellow areas and possibly other areas if you want.
B3: Training Max | D3: 90% 1RM | E3: Estimated 1RM | H3: Weight Used | I3: Reps Achieved
B4: Squat: | C4: ='Cycle 6'!C4+10 -> 60 | D4: =G4*0.9 -> 45 | E4: Squat: | G4: =H4*I4*0.033333+H4 -> 50 | H4: =IF(I64=F64,'Cycle 6'!I15,IF(I64=D64,'Cycle 6'!F15,IF(I64=C64,'Cycle 6'!C15,"N/A"))) -> 43 | I4: =IF(I64=F64,'Cycle 6'!J15,IF(I64=D64,'Cycle 6'!G15,IF(I64=C64,'Cycle 6'!D15,"N/A"))) -> 5
B5: Bench: | C5: ='Cycle 6'!C5+5 -> 30 | D5: =G5*0.9 -> 22 | E5: Bench: | G5: =H5*I5*0.033333+H5 -> 25 | H5: =IF(I65=F65,'Cycle 6'!I24,IF(I65=D65,'Cycle 6'!F24,IF(I65=C65,'Cycle 6'!C24,"N/A"))) -> 21 | I5: =IF(I65=F65,'Cycle 6'!J24,IF(I65=D65,'Cycle 6'!G24,IF(I65=C65,'Cycle 6'!D24,"N/A"))) -> 5
B6: Deadlift: | C6: ='Cycle 6'!C6+10 -> 60 | D6: =G6*0.9 -> 45 | E6: Deadlift: | G6: =H6*I6*0.033333+H6 -> 50 | H6: =IF(I66=F66,'Cycle 6'!I33,IF(I66=D66,'Cycle 6'!F33,IF(I66=C66,'Cycle 6'!C33,"N/A"))) -> 43 | I6: =IF(I66=F66,'Cycle 6'!J33,IF(I66=D66,'Cycle 6'!G33,IF(I66=C66,'Cycle 6'!D33,"N/A"))) -> 5
B7: OH Press: | C7: ='Cycle 6'!C7+5 -> 30 | D7: =G7*0.9 -> 22 | E7: OH Press: | G7: =H7*I7*0.033333+H7 -> 25 | H7: =IF(I67=F67,'Cycle 6'!I42,IF(I67=D67,'Cycle 6'!F42,IF(I67=C67,'Cycle 6'!C42,"N/A"))) -> 21 | I7: =IF(I67=F67,'Cycle 6'!J42,IF(I67=D67,'Cycle 6'!G42,IF(I67=C67,'Cycle 6'!D42,"N/A"))) -> 5
B8: Exercise | C8: Week 1 | F8: Week 2 | I8: Week 3 | L8: Week 4 - DELOAD
C9: Weight | D9: Reps | E9: Notes | F9: Weight | G9: Reps | H9: Notes | I9: Weight | J9: Reps | K9: Notes | L9: Weight | M9: Reps | N9: Notes
A10: ='Cycle 6'!A10:A18 -> Monday | B10: Squat | C10: =C4*0.4 -> 24 | D10: 5 | F10: =C10 -> 24 | G10: 5 | I10: =F10 -> 24 | J10: 5 | L10: - | M10: -
C11: =C4*0.47 -> 28 | D11: 5 | F11: =C4*0.5 -> 30 | G11: 5 | I11: =F11 -> 30 | J11: 5 | L11: - | M11: -
C12: =C4*0.55 -> 33 | D12: 3 | F12: =C4*0.6 -> 36 | G12: 3 | I12: =F12 -> 36 | J12: 3 | L12: - | M12: -
C13: =C4*0.65 -> 39 | D13: 5 | F13: =(C4*0.7) -> 42 | G13: 3 | I13: =(C4*0.75) -> 45 | J13: 5 | L13: =(C4*0.4) -> 24 | M13: 5
C14: =C4*0.75 -> 45 | D14: 5 | F14: =(C4*0.8) -> 48 | G14: 3 | I14: =(C4*0.85) -> 51 | J14: 3 | L14: =(C4*0.5) -> 30 | M14: 5
C15: =C4*0.85 -> 51 | D15: 5 | F15: =(C4*0.9) -> 54 | G15: 3 | I15: =(C4*0.95) -> 57 | J15: 1 | L15: =(C4*0.6) -> 36 | M15: 5
B16: ='Cycle 6'!B16 -> Assistance 1 | C16: ='Cycle 6'!C16 -> 0 | D16: 5x10 | F16: =(H2+1)*C16 -> 0 | G16: 5x10 | I16: =(H2+1)*F16 -> 0 | J16: 5x10 | L16: =C16 -> 0 | M16: 5x10
B17: ='Cycle 6'!B17 -> Assistance 2 | C17: ='Cycle 6'!C17 -> 0 | D17: 5x12 | F17: =(H2+1)*C17 -> 0 | G17: 5x12 | I17: =(H2+1)*F17 -> 0 | J17: 5x12 | L17: =C17 -> 0 | M17: 5x12
B18: ='Cycle 6'!B18 -> Ab Exercise | C18: ='Cycle 6'!C18 -> 0 | D18: 5x13 | F18: =(H2+1)*C18 -> 0 | G18: 5x13 | I18: =(H2+1)*F18 -> 0 | J18: 5x13 | L18: =C18 -> 0 | M18: 5x13
A19: ='Cycle 6'!A19:A27 -> Tuesday | B19: Bench | C19: =C5*0.4 -> 12 | D19: 5 | F19: =C19 -> 12 | G19: 5 | I19: =F19 -> 12 | J19: 5 | L19: - | M19: -
C20: =C5*0.47 -> 14 | D20: 5 | F20: =C5*0.5 -> 15 | G20: 5 | I20: =F20 -> 15 | J20: 5 | L20: - | M20: -
C21: =C5*0.55 -> 17 | D21: 3 | F21: =C5*0.6 -> 18 | G21: 3 | I21: =F21 -> 18 | J21: 3 | L21: - | M21: -
C22: =C5*0.65 -> 20 | D22: 5 | F22: =(C5*0.7) -> 21 | G22: 3 | I22: =(C5*0.75) -> 23 | J22: 5 | L22: =(C5*0.4) -> 12 | M22: 5
C23: =C5*0.75 -> 23 | D23: 5 | F23: =(C5*0.8) -> 24 | G23: 3 | I23: =(C5*0.85) -> 26 | J23: 3 | L23: =(C5*0.5) -> 15 | M23: 5
C24: =C5*0.85 -> 26 | D24: 5 | F24: =(C5*0.9) -> 27 | G24: 3 | I24: =(C5*0.95) -> 29 | J24: 1 | L24: =(C5*0.6) -> 18 | M24: 5
B25: ='Cycle 6'!B25 -> Assistance 1 | C25: ='Cycle 6'!C25 -> 0 | D25: 5x10 | F25: =(H2+1)*C25 -> 0 | G25: 5x10 | I25: =(H2+1)*F25 -> 0 | J25: 5x10 | L25: =C25 -> 0 | M25: 5x10
B26: ='Cycle 6'!B26 -> Assistance 2 | C26: ='Cycle 6'!C26 -> 0 | D26: 5x10 | F26: =(H2+1)*C26 -> 0 | G26: 5x10 | I26: =(H2+1)*F26 -> 0 | J26: 5x10 | L26: =C26 -> 0 | M26: 5x10
B27: ='Cycle 6'!B27 -> Ab Exercise | C27: ='Cycle 6'!C27 -> 0 | F27: =(H2+1)*C27 -> 0 | I27: =(H2+1)*F27 -> 0 | L27: =C27 -> 0
A28: ='Cycle 6'!A28:A36 -> Thursday | B28: Deadlift | C28: =C6*0.4 -> 24 | D28: 5 | F28: =C28 -> 24 | G28: 5 | I28: =F28 -> 24 | J28: 5 | L28: - | M28: -
C29: =C6*0.47 -> 28 | D29: 5 | F29: =C6*0.5 -> 30 | G29: 5 | I29: =F29 -> 30 | J29: 5 | L29: - | M29: -
C30: =C6*0.55 -> 33 | D30: 3 | F30: =C6*0.6 -> 36 | G30: 3 | I30: =F30 -> 36 | J30: 3 | L30: - | M30: -
C31: =C6*0.65 -> 39 | D31: 5 | F31: =(C6*0.7) -> 42 | G31: 3 | I31: =(C6*0.75) -> 45 | J31: 5 | L31: =(C6*0.4) -> 24 | M31: 5
C32: =C6*0.75 -> 45 | D32: 5 | F32: =(C6*0.8) -> 48 | G32: 3 | I32: =(C6*0.85) -> 51 | J32: 3 | L32: =(C6*0.5) -> 30 | M32: 5
C33: =C6*0.85 -> 51 | D33: 5 | F33: =(C6*0.9) -> 54 | G33: 3 | I33: =(C6*0.95) -> 57 | J33: 1 | L33: =(C6*0.6) -> 36 | M33: 5
B34: ='Cycle 6'!B34 -> Assistance 1 | C34: ='Cycle 6'!C34 -> 0 | D34: 5x10 | F34: =(H2+1)*C34 -> 0 | G34: 5x10 | I34: =(H2+1)*F34 -> 0 | J34: 5x10 | L34: =C34 -> 0 | M34: 5x10
B35: ='Cycle 6'!B35 -> Assistance 2 | C35: ='Cycle 6'!C35 -> 0 | D35: 5x10 | F35: =(H2+1)*C35 -> 0 | G35: 5x10 | I35: =(H2+1)*F35 -> 0 | J35: 5x10 | L35: =C35 -> 0 | M35: 5x10
B36: ='Cycle 6'!B36 -> Ab Exercise | C36: ='Cycle 6'!C36 -> 0 | D36: 5x13 | F36: =(H2+1)*C36 -> 0 | G36: 5x13 | I36: =(H2+1)*F36 -> 0 | J36: 5x13 | L36: =C36 -> 0 | M36: 5x13
A37: ='Cycle 6'!A37:A45 -> Friday | B37: OH Press | C37: =C7*0.4 -> 12 | D37: 5 | F37: =C37 -> 12 | G37: 5 | I37: =F37 -> 12 | J37: 5 | L37: - | M37: -
C38: =C7*0.47 -> 14 | D38: 5 | F38: =C7*0.5 -> 15 | G38: 5 | I38: =F38 -> 15 | J38: 5 | L38: - | M38: -
C39: =C7*0.55 -> 17 | D39: 3 | F39: =C7*0.6 -> 18 | G39: 3 | I39: =F39 -> 18 | J39: 3 | L39: - | M39: -
C40: =C7*0.65 -> 20 | D40: 5 | F40: =(C7*0.7) -> 21 | G40: 3 | I40: =(C7*0.75) -> 23 | J40: 5 | L40: =(C7*0.4) -> 12 | M40: 5
C41: =C7*0.75 -> 23 | D41: 5 | F41: =(C7*0.8) -> 24 | G41: 3 | I41: =(C7*0.85) -> 26 | J41: 3 | L41: =(C7*0.5) -> 15 | M41: 5
C42: =C7*0.85 -> 26 | D42: 5 | F42: =(C7*0.9) -> 27 | G42: 3 | I42: =(C7*0.95) -> 29 | J42: 1 | L42: =(C7*0.6) -> 18 | M42: 5
B43: ='Cycle 6'!B43 -> Assistance 1 | C43: ='Cycle 6'!C43 -> 0 | D43: 5x10 | F43: =(H2+1)*C43 -> 0 | G43: 5x10 | I43: =(H2+1)*F43 -> 0 | J43: 5x10 | L43: =C43 -> 0 | M43: 5x10
B44: ='Cycle 6'!B44 -> Assistance 2 | C44: ='Cycle 6'!C44 -> 0 | D44: 5x10 | F44: =(H2+1)*C44 -> 0 | G44: 5x10 | I44: =(H2+1)*F44 -> 0 | J44: 5x10 | L44: =C44 -> 0 | M44: 5x10
B45: ='Cycle 6'!B45 -> Ab Exercise | C45: ='Cycle 6'!C45 -> 0 | D45: 5x12 | F45: =(H2+1)*C45 -> 0 | G45: 5x12 | I45: =(H2+1)*F45 -> 0 | J45: 5x12 | L45: =C45 -> 0 | M45: 5x12
B47: Exercise | C47: Week 1 | F47: Week 2 | I47: Week 3 | L47: Week 4 - DELOAD
C48: Weight | D48: Reps | E48: Notes | F48: Weight | G48: Reps | H48: Notes | I48: Weight | J48: Reps | K48: Notes | L48: Weight | M48: Reps | N48: Notes
A49: ='Cycle 6'!A49:A54 -> Wed - ("Off")
A55: ='Cycle 6'!A55:A60 -> Sat or Sun - ("Off")
C62: MAXES from Cycle 6
B63: Weeks | C63: 1 | D63: 2 | F63: 3 | I63: Best
B64: Squat | C64: =('Cycle 6'!C15*'Cycle 6'!D15*0.033333+'Cycle 6'!C15) -> 50 | D64: =('Cycle 6'!F15*'Cycle 6'!G15*0.033333+'Cycle 6'!F15) -> 49 | F64: =('Cycle 6'!I15*'Cycle 6'!J15*0.033333+'Cycle 6'!I15) -> 49 | I64: =MAX(C64:F64) -> 50
B65: Bench | C65: =('Cycle 6'!C24*'Cycle 6'!D24*0.033333+'Cycle 6'!C24) -> 25 | D65: =('Cycle 6'!F24*'Cycle 6'!G24*0.033333+'Cycle 6'!F24) -> 25 | F65: =('Cycle 6'!I24*'Cycle 6'!J24*0.033333+'Cycle 6'!I24) -> 25 | I65: =MAX(C65:F65) -> 25
B66: Deadlift | C66: =('Cycle 6'!C33*'Cycle 6'!D33*0.033333+'Cycle 6'!C33) -> 50 | D66: =('Cycle 6'!F33*'Cycle 6'!G33*0.033333+'Cycle 6'!F33) -> 49 | F66: =('Cycle 6'!I33*'Cycle 6'!J33*0.033333+'Cycle 6'!I33) -> 49 | I66: =MAX(C66:F66) -> 50
B67: OH Press | C67: =('Cycle 6'!C42*'Cycle 6'!D42*0.033333+'Cycle 6'!C42) -> 25 | D67: =('Cycle 6'!F42*'Cycle 6'!G42*0.033333+'Cycle 6'!F42) -> 25 | F67: =('Cycle 6'!I42*'Cycle 6'!J42*0.033333+'Cycle 6'!I42) -> 25 | I67: =MAX(C67:F67) -> 25
